Cogmind - Beta 11 X5 @@@ ROGUE MODE // 2021.07.06 @ 13:29:22 Player: AlmondRoll Result: Self-destructed Performance ------------- Evolutions (3) 1500 Regions Visited (6) 1200 Robots Destroyed (42) 210 Value Destroyed (763) 763 Prototype IDs (29) 580 Alien Tech Used (0) 0 Bonus (25) 25 TOTAL SCORE: 4278 Bonus ------- Follower Combat Kills 25 Cogmind --------- Core Integrity 678/700 Matter 249/300 Energy 100/100 System Corruption 0% Temperature Cool (27) Movement Hovering (120) Ox1 Location -7/Factory Parts ------- > --- POWER (1) -------- (None) > --- PROPULSION (4) --- Airjet > --- UTILITY (5) ------ Improved Heat Sink Small Storage Unit Hacking Suite Makeshift System Shield > --- WEAPON (3) ------- Enhanced Autogun Enhanced Autogun Enhanced Autogun > --- INVENTORY (8) ---- Light Nuclear Core Medium Storage Unit Weight Redist. System Improved Sensor Array Improved Signal Interpreter Makeshift Hacking Suite Chronowheel Plasma Cannon Peak State ------------ > --- POWER ------------ Micro Nuclear Core > --- PROPULSION ------- Hover Unit Airjet Aerolev Unit Aerolev Unit > --- UTILITY ---------- Improved Heat Sink Small Storage Unit Hardened Medium Armor Plating Hacking Suite Makeshift System Shield > --- WEAPON ----------- Enhanced Autogun Enhanced Autogun Enhanced Autogun > --- INVENTORY -------- Light Nuclear Core Medium Storage Unit Weight Redist. System Improved Sensor Array Improved Signal Interpreter Makeshift Hacking Suite Chronowheel Grenade Launcher [Rating: 45] Favorites ----------- Power Light Ion Engine Engine Light Ion Engine Power Core Micro Nuclear Core Propulsion Compact Wheel Treads Light Treads Leg Aluminum Leg Wheel Compact Wheel Hover Unit Aerolev Unit Utility Small Storage Unit Device Structural Scanner Storage Small Storage Unit Processor Transport Network Coupler Hackware Hacking Suite Protection Hardened Medium Armor Plating Weapon Light Assault Rifle Energy Gun Beamcaster Energy Cannon Plasma Cannon Ballistic Gun Light Assault Rifle Launcher Grenade Launcher Build | -11 -10 -10 -10 -9 -8 -7 ------- Run | Scr Mat Min Exi Min Mat Fac Slots Evolved 6 | . . . . . 4 2 Power . | . . . . . . . Propulsion 2 | . . . . . 1 1 Utility 3 | . . . . . 2 1 Weapon 1 | . . . . . 1 . Parts Attached 51 | 2 9 7 11 2 14 6 Power 4 | . 3 . 1 . . . Engine 3 | . 3 . . . . . Core 1 | . . . 1 . . . Reactor . | . . . . . . . Propulsion 9 | 2 1 1 . . 4 1 Treads 1 | . . 1 . . . . Leg 1 | . . . . . 1 . Wheel 3 | 2 1 . . . . . Hover 4 | . . . . . 3 1 Flight . | . . . . . . . Utility 12 | . 1 . 5 . 3 3 Device 8 | . 1 . 4 . 1 2 Storage . | . . . . . . . Processor 1 | . . . 1 . . . Hackware 2 | . . . . . 2 . Protection 1 | . . . . . . 1 Artifact . | . . . . . . . Weapon 26 | . 4 6 5 2 7 2 Energy Gun 6 | . 1 1 2 1 1 . Energy Cannon 1 | . . . . . . 1 Ballistic Gun 12 | . 2 4 1 . 4 1 Ballistic Cannon . | . . . . . . . Launcher 7 | . 1 1 2 1 2 . Special Weapon . | . . . . . . . Impact Weapon . | . . . . . . . Slashing Weapon . | . . . . . . . Piercing Weapon . | . . . . . . . Special Melee Weapon . | . . . . . . . Unidentified Prototypes 2 | . . . . . 2 . Parts Lost 6 | . 3 . . . . 3 Power 1 | . 1 . . . . . Propulsion 4 | . 1 . . . . 3 Utility . | . . . . . . . Weapon 1 | . 1 . . . . . Highest Loss Streak 3 | . 3 . . . . 3 Average Slot Usage (%) 98 | . 92 99 100 100 89 99 Engine 9 | . 14 14 10 . . . Core 3 | . . . 3 14 9 7 Treads 10 | . . 9 14 14 5 . Wheel 14 | . 27 18 14 14 5 . Hover 2 | . . . . . 11 29 Device 13 | . 7 14 13 14 14 7 Storage 13 | . 14 14 14 14 9 7 Hackware 1 | . . . . . 6 15 Energy Gun 9 | . 13 10 9 7 10 . Ballistic Gun 15 | . 14 16 14 14 15 23 Launcher 2 | . . . 4 7 . . Naked Turns . | . . . . . . . Heaviest Build 29 | 10 12 15 19 19 26 29 Greatest Support 36 | 20 26 26 16 16 22 36 Greatest Overweight (x) 1 | . . . 1 1 1 1 Average Overweight (x) . | . . . . 1 . . Largest Inventory Capacity 8 | 8 8 8 8 8 8 8 Average Capacity 8 | 8 8 8 8 8 8 8 Most Carried 8 | 8 8 8 8 8 8 8 Average Carried 7 | 5 7 7 7 8 7 7 Final Capacity 8 | 8 8 8 8 8 8 8 Final Carried 8 | 8 8 8 8 8 8 8 Class Distribution -------------------- 51% | Scavenger-Mutant 32% | Mutant 5% | Scavenger-Gunner 5% | Hacker-Gunner 4% | Hacker-Tank Dominant Class ---------------- Mutant | -10/Materials Scavenger-Mutant | -10/Mines Scavenger-Mutant | -10/Exiles Scavenger-Mutant | -9/Mines Scavenger-Gunner | -8/Materials Hacker-Tank | -7/Factory Resources | -11 -10 -10 -10 -9 -8 -7 ----------- Run | Scr Mat Min Exi Min Mat Fac Matter Collected 1032 | 237 12 214 223 . 271 75 Remotely . | . . . . . . . Salvage Created 1436 | 204 240 193 423 16 285 75 Parts 103 | 20 19 15 16 4 26 3 Haulers Intercepted 2 | . . . . . 2 . Recyclers Shooed 5 | 1 2 1 . . 1 . Parts Field Recycled . | . . . . . . . Retrieved Matter . | . . . . . . . Parts Self-Destructed . | . . . . . . . Prevented . | . . . . . . . Kills | -11 -10 -10 -10 -9 -8 -7 ------- Run | Scr Mat Min Exi Min Mat Fac Combat Hostiles Destroyed 28 | . 11 6 . 4 6 1 Guns 11 | . 3 4 . . 3 1 AOE 17 | . 8 2 . 4 3 . Classes Destroyed 9 | 3 2 . . . 3 1 Worker 2 | 2 . . . . . . Builder 2 | . . . . . 2 . Tunneler 6 | 5 . 1 . . . . Hauler 2 | . . . . . 2 . Recycler 1 | 1 . . . . . . Operator 1 | . . . . . 1 . Swarmer 17 | . 6 3 . 4 4 . Grunt 10 | . 5 3 . . 2 . Sentry 1 | . . . . . . 1 Best Kill Streak 8 | 8 8 2 . 4 6 1 Combat Bots Only 8 | . 8 2 . 4 4 1 Max Kills in Single Turn 3 | 1 3 2 . 3 3 1 Gunslinging . | . . . . . . . Exploded 3 | . 3 2 . 3 2 . Melee . | . . . . . . . Uniques/NPCs Destroyed . | . . . . . . . Combat | -11 -10 -10 -10 -9 -8 -7 -------- Run | Scr Mat Min Exi Min Mat Fac Damage Taken 1275 | . 311 69 . 97 220 578 Core 114 | . 60 7 . 15 10 22 Absorbed by Shields . | . . . . . . . Core Remaining (%) 88 | 100 . . . 67 98 . Volleys Fired 135 | 19 14 14 59 2 17 10 Largest 3 | 2 2 2 2 1 3 3 Hottest 158 | 60 60 95 95 30 158 80 Shots Fired 223 | 38 24 28 60 2 43 28 Gun 200 | 38 20 27 49 . 39 27 Cannon 1 | . . . . . . 1 Launcher 22 | . 4 1 11 2 4 . Special . | . . . . . . . Kinetic 93 | 19 10 19 1 . 17 27 Thermal 108 | 19 10 8 48 . 22 1 Explosive 22 | . 4 1 11 2 4 . Electromagnetic . | . . . . . . . Robot Hit Streak 21 | 6 7 3 7 7 11 21 Robot Miss Streak 5 | 2 3 3 2 . 4 5 Penetration Max . | . . . . . . . Secondary Targets 1 | . . . . . 1 . Max Gunslinging Chain 1 | . . . . . 1 . Shots Hit Robots 131 | 23 16 14 36 1 20 21 Core Hits 74 | 13 15 9 15 4 15 3 Critical Kills 1 | . 1 . . . . . Critical Parts Destroyed . | . . . . . . . Critical Strikes 3 | . 1 . 2 . . . Burn 2 | . . . 2 . . . Destroy 1 | . 1 . . . . . Melee Attacks . | . . . . . . . Impact . | . . . . . . . Slashing . | . . . . . . . Piercing . | . . . . . . . Sneak Attacks . | . . . . . . . Combat Hostiles . | . . . . . . . Follow-up Attacks . | . . . . . . . Damage Inflicted 3039 | 220 442 323 768 306 607 373 Guns 1973 | 220 121 137 768 . 354 373 Cannons . | . . . . . . . Explosions 1066 | . 321 186 . 306 253 . Melee . | . . . . . . . Ramming . | . . . . . . . Kinetic 725 | 106 54 62 11 . 119 373 Thermal 1460 | 114 67 183 757 104 235 . Explosive 854 | . 321 78 . 202 253 . Electromagnetic . | . . . . . . . Impact . | . . . . . . . Slashing . | . . . . . . . Piercing . | . . . . . . . Highest Corruption . | . . . . . . . Average Corruption . | . . . . . . . Corruption Purged . | . . . . . . . Overload Shots . | . . . . . . . Overflow Damage 61 | . 10 . . 14 37 . Projectiles . | . . . . . . . Explosions 61 | . 10 . . 14 37 . Melee . | . . . . . . . Knockbacks . | . . . . . . . Impact . | . . . . . . . Kinetic . | . . . . . . . Secondary . | . . . . . . . Self-Inflicted Damage 39 | . 2 . . 22 15 . Shots 3 | . 1 . . 1 1 . Rammed . | . . . . . . . Targets Rammed . | . . . . . . . Kicked . | . . . . . . . Crushed . | . . . . . . . Highest Temperature 272 | 40 64 210 272 . 192 152 Average Temperature 52 | 23 28 81 49 . 67 76 Received Heat Transfer 417 | . 72 9 . . 81 255 Effects 2 | . . . 2 . . . Interference 2 | . . . 2 . . . Siege Activations . | . . . . . . . Robots Corrupted . | . . . . . . . Combat Hostiles . | . . . . . . . Parts Fried . | . . . . . . . Impact Corruptions . | . . . . . . . Robots Melted . | . . . . . . . Combat Hostiles . | . . . . . . . Parts Melted 1 | . 1 . . . . . Heat Transferred 2623 | 250 150 236 1480 100 407 . Parts Sabotaged . | . . . . . . . Parts Stolen . | . . . . . . . Parts Stripped . | . . . . . . . Power Chain Reactions . | . . . . . . . Missiles Intercepted . | . . . . . . . Alert | -11 -10 -10 -10 -9 -8 -7 ------- Run | Scr Mat Min Exi Min Mat Fac Peak Influence 422 | 40 210 287 . 120 422 353 Initial 191 | . 26 81 . . 46 191 Average 179 | 12 136 182 . 98 213 276 Maximum Alert Level 2 | . 1 1 . . 2 1 Low Security (%) 62 | 100 61 74 . 100 53 14 Level 1 36 | . 38 25 . . 42 85 Level 2 . | . . . . . 4 . Level 3 . | . . . . . . . Level 4 . | . . . . . . . Level 5 . | . . . . . . . High Security . | . . . . . . . Max Security . | . . . . . . . Squads Dispatched 10 | . 3 1 . . 5 1 Investigation 7 | . 3 1 . . 2 1 Extermination . | . . . . . . . Reinforcement 3 | . . . . . 3 . Assault . | . . . . . . . Garrison . | . . . . . . . Intercept . | . . . . . . . Construction Impeded 1 | . . . . . 1 . Haulers Reinforced . | . . . . . . . Cargo Convoy Interrupts . | . . . . . . . Stealth | -11 -10 -10 -10 -9 -8 -7 --------- Run | Scr Mat Min Exi Min Mat Fac Distress Signals 3 | . 2 . . . 1 . Communications Jammed . | . . . . . . . Distress Signals . | . . . . . . . Times Spotted 53 | . 14 6 . 4 19 10 Peak Tracking Total 10 | . 10 3 . 4 10 7 Tactical Retreats 6 | . . 1 . . 3 2 Traps | -11 -10 -10 -10 -9 -8 -7 ------- Run | Scr Mat Min Exi Min Mat Fac Traps Triggered 3 | . 2 . . . 1 . Indirectly . | . . . . . . . Trap Hack Attempts . | . . . . . . . Triggered . | . . . . . . . Disarmed . | . . . . . . . Reprogrammed . | . . . . . . . Reused . | . . . . . . . Traps Extracted . | . . . . . . . Installed . | . . . . . . . Triggered . | . . . . . . . Machines | -11 -10 -10 -10 -9 -8 -7 ---------- Run | Scr Mat Min Exi Min Mat Fac Machines Disabled 11 | . . 3 3 1 4 . Max in Single Turn 3 | . . 3 2 1 1 . Machines Sabotaged . | . . . . . . . Garrisons Compromised . | . . . . . . . Overloaded Fab Kills . | . . . . . . . Fab Network Shutdowns . | . . . . . . . Hacking | -11 -10 -10 -10 -9 -8 -7 --------- Run | Scr Mat Min Exi Min Mat Fac Machines Accessed 17 | . 5 2 2 . 4 4 Terminals 9 | . 3 1 . . 3 2 Fabricators . | . . . . . . . Repair Stations 1 | . . . . . . 1 Recycling Units 4 | . 2 . . . 1 1 Scanalyzers . | . . . . . . . Garrison Access . | . . . . . . . Total Hacks 63 | . 15 4 23 . 12 9 Successful 43 | . 10 2 23 . 4 4 Failed 19 | . 5 1 . . 8 5 Catastrophic 2 | . . 1 . . . 1 Database Lockouts 1 | . . 1 . . . . Manual 41 | . 9 3 12 . 10 7 Terminals 34 | . 13 3 . . 11 7 Fabricators . | . . . . . . . Repair Stations 1 | . . . . . . 1 Recycling Units 4 | . 2 . . . 1 1 Scanalyzers . | . . . . . . . Garrison Access . | . . . . . . . Terminal Hacks 34 | . 6 2 23 . 2 1 Record 22 | . . . 22 . . . Prototype ID Bank 2 | . 1 1 . . . . Open Door 1 | . . 1 . . . . Branch Access Points 1 | . . . . . 1 . Unreport Threat 1 | . 1 . . . . . Locate Traps 2 | . 1 . . . 1 . Hauler Manifests 2 | . 1 . . . . 1 Registered Components 1 | . 1 . . . . . Zone Layout 1 | . 1 . . . . . EX-Prototype ID Bank 1 | . . . 1 . . . Fabricator Hacks . | . . . . . . . Repair Station Hacks . | . . . . . . . Recycling Unit Hacks . | . . . . . . . Scanalyzer . | . . . . . . . Garrison Access Hacks . | . . . . . . . Unauthorized Hacks 9 | . 4 . . . 2 3 Terminals 5 | . 2 . . . 1 2 Botnet 5 | . 2 . . . 1 2 Fabricators . | . . . . . . . Repair Stations . | . . . . . . . Recycling Units 4 | . 2 . . . 1 1 Tunnel 4 | . 2 . . . 1 1 Scanalyzers . | . . . . . . . Garrison Access . | . . . . . . . Data Cores Recovered . | . . . . . . . Used . | . . . . . . . Hacking Detections 9 | . 3 1 . . 3 2 Full Trace Events . | . . . . . . . Feedback Events . | . . . . . . . Feedback Blocked . | . . . . . . . Robot Schematics Acquired . | . . . . . . . Robots Built . | . . . . . . . Matter . | . . . . . . . Time . | . . . . . . . Total Robot Build Rating . | . . . . . . . Part Schematics Acquired . | . . . . . . . Parts Built . | . . . . . . . Matter . | . . . . . . . Time . | . . . . . . . Total Part Build Rating . | . . . . . . . Parts Repaired . | . . . . . . . Time . | . . . . . . . Parts Recycled . | . . . . . . . Recycled Matter . | . . . . . . . Retrieved Matter . | . . . . . . . Retrieved Components . | . . . . . . . Parts Scanalyzed . | . . . . . . . Part Schematics Acquired . | . . . . . . . Parts Damaged . | . . . . . . . Bothacking | -11 -10 -10 -10 -9 -8 -7 ------------ Run | Scr Mat Min Exi Min Mat Fac Used RIF Installer . | . . . . . . . Robots Hacked . | . . . . . . . Non-combat . | . . . . . . . Combat . | . . . . . . . Robot Hacks Applied . | . . . . . . . Relay Couplers Released . | . . . . . . . Robots Rewired . | . . . . . . . Allies Hacked . | . . . . . . . Hacks Repelled . | . . . . . . . Allies | -11 -10 -10 -10 -9 -8 -7 -------- Run | Scr Mat Min Exi Min Mat Fac Total Allies 1 | . . 1 . . . . Largest Group 1 | . . 1 1 . . . Highest-Rated Group 31 | . . 31 31 . . . Highest-Rated Ally 31 | . . 31 31 . . . Total Orders . | . . . . . . . Ally Attacks 3 | . . . 3 . . . Total Damage 43 | . . . 43 . . . Kills 1 | . . . 1 . . . Allies Corrupted . | . . . . . . . Allies Melted . | . . . . . . . Intel | -11 -10 -10 -10 -9 -8 -7 ------- Run | Scr Mat Min Exi Min Mat Fac Robot Analysis Total . | . . . . . . . Derelict Logs Recovered 1 | . . 1 . . . . Drone Launches . | . . . . . . . Drone Recoveries . | . . . . . . . Exploration | -11 -10 -10 -10 -9 -8 -7 ------------- Run | Scr Mat Min Exi Min Mat Fac Turns Passed 3134 | 105 239 525 1752 22 319 172 Spaces Moved 2899 | 54 207 467 1543 14 311 303 Core . | . . . . . . . Treads 9 | . . 1 . . 8 . Legs 2 | 2 . . . . . . Wheels 2375 | 52 207 466 1543 14 93 . Hover 513 | . . . . . 210 303 Flight . | . . . . . . . Fastest Speed 43 | 80 80 90 100 115 45 43 Average Speed 90 | 81 84 96 103 115 72 43 Slowest Speed 260 | 120 90 160 115 115 260 105 Overloaded Moves . | . . . . . . . Propulsion Burnouts . | . . . . . . . Robots Hopped . | . . . . . . . Cave-ins Triggered . | . . . . . . . Exploration Rate (%) 40 | 4 52 81 98 11 34 5 Regions Visited 6 Branch Regions 3 Pre-discovered Areas 6 | . 2 1 1 . 1 1 Known Exits Taken . | . . . . . . . Unknown Exits Taken 6 | 1 1 1 1 1 1 . Scrap Searched 1 | . . 1 . . . . Spaces Dug 9 | . . . . . 9 . Terrain Destroyed 223 | . 30 21 135 15 22 . Melee . | . . . . . . . Projectile 2 | . . . . . 2 . AOE 221 | . 30 21 135 15 20 . Terrain Rammed . | . . . . . . . Walls Destroyed . | . . . . . . . Machines Disabled . | . . . . . . . Actions | -11 -10 -10 -10 -9 -8 -7 --------- Run | Scr Mat Min Exi Min Mat Fac Total 3208 | 82 247 517 1641 17 373 331 Wait 63 | . 9 17 16 . 14 7 Move 2893 | 53 206 466 1542 13 310 303 Hop . | . . . . . . . Pick Up 30 | 5 6 5 5 . 7 2 Fast Attach 13 | . 1 2 3 . 6 1 Attach 12 | 2 3 2 1 . 3 1 Detach 2 | . . . . . 2 . Swap 26 | . 5 3 7 2 5 4 Drop 34 | 3 3 8 8 . 9 3 Fire 135 | 19 14 14 59 2 17 10 Melee . | . . . . . . . Ram . | . . . . . . . Kick . | . . . . . . . Crush . | . . . . . . . Escape Stasis . | . . . . . . . Rewire . | . . . . . . . Trap . | . . . . . . . Miscellaneous . | . . . . . . . Route ------- -11/Scrapyard -10/Materials (discovered 3 exits: [*Mat x2] / *Min) -10/Mines (discovered 2 exits: [*Mat] / *Exi) -10/Exiles (discovered 2 exits: [*Min x2]) -9/Mines -8/Materials -7/Factory History --------- Turn | Location | Event 1 | -11/Scrapyard | Discovered new exit (range 3) 106 | -11/Scrapyard | Entered Materials 236 | -10/Materials | Discovered new exit (range 7) 274 | -10/Materials | Destroyed 8 combat bots 280 | -10/Materials | Lost 3 parts (1p1n1w) 309 | -10/Materials | Build established: Mutant 320 | -10/Materials | Discovered new exit (range 5) 332 | -10/Materials | Discovered new exit (range 15) 345 | -10/Materials | Entered Mines 439 | -10/Mines | Learned location of Storage (-7) 496 | -10/Mines | Met a Derelict shopkeep closing up shop 606 | -10/Mines | Discovered new exit (range 7) 659 | -10/Mines | Central database locked down 782 | -10/Mines | Received a Rocket Launcher from a helpful Derelict 789 | -10/Mines | Build established: Scavenger-Mutant 838 | -10/Mines | Received a Mining Laser from a helpful Derelict 861 | -10/Mines | Deemed a non-threat by the Exiles lab entrance 861 | -10/Mines | Discovered new exit (range 5) 870 | -10/Mines | Entered Exiles 870 | -10/Exiles | Found Exiles lab destroyed 870 | -10/Exiles | Accompanied by 1 ally 1027 | -10/Exiles | Learned location of Zion (-7) 1506 | -10/Exiles | Discovered new exit (range 11) 1782 | -10/Exiles | Discovered new exit (range 15) 2490 | -10/Exiles | Opened EX-Vault 2501 | -10/Exiles | Found Chronowheel 2622 | -10/Exiles | Entered Mines 2624 | -9/Mines | Met a Derelict bent on vengeance 2632 | -9/Mines | Discovered new exit (range 12) 2644 | -9/Mines | Entered Materials 2644 | -8/Materials | Evolved 4 slots: Propulsion x1, Utility x2, Weapon x1 2905 | -8/Materials | Discovered new exit (range 15) 2963 | -8/Materials | Entered Factory 2963 | -7/Factory | Evolved 2 slots: Propulsion x1, Utility x1 3135 | -7/Factory | Self-destructed Last Messages --------------- >>Force(Tunnel) DISCOVERED[-4/Factory] 03048_ ALERT: Suspicious activity at Recycling Unit F003. Dispatching Investigation squad. 03063_ Connecting with Terminal... >>Trojan(Botnet) Trojan loaded successfully. Testing... Terminal linked with 1 system. Awaiting botnet instructions. 03067_ Dropped Grenade Launcher. 03067_ Acquired Plasma Cannon. 03091_ Y-54 Guardian destroyed. 03093_ Acquired 75 matter. 03116_ Critical hit (Burn: +37). 03131_ Hover Unit destroyed. 03133_ Aerolev Unit destroyed. 03133_ Dropped Hrd. Medium Armor Plating. 03133_ Dropped Mic. Nuclear Core. 03135_ Aerolev Unit destroyed. Map ----- +----------------------------------------------------+ | """ #????# #??# """ """ #????????? | | ! """ #????# #??# """ """ #????????? | | """ #????# #??# """ """ #????????? | | #????# #??# #????????? | | """ #????# #??# """ #????????? | | ! """ #????# #??# """ """#????????? | | ??? #??### #### """ """#????????? | | ??? #??# ## R"#????????? | | ############ ## """#????????? | | ! + + "" #?#####??? | | """"" # ## #?# #??? | | = ""T"" # ###############?# #??? | | ## ##??? #?# #??? | | """"""""" ## #??# """" #?## ##??? | | ## #??# """" ""#??# #???? | | ############# #??# """" ! Y"#### #???? | | ??????????### #### """" ""# #???? | | ???######## ## # #???? | | ???# #######+###### #???? | | ???# g #???? | | ???# [ ggg #???? | | ???# g #???? | | ???# ####### g##########??? | | ???# ## #?????# *!# #?? | | #### #####+########?# + #?? | | # [ = """"" #?#@ # #?? | | # ! ""T"" #?# # #?? | | + #?# #? #?? | | # #?# #? #?? | | # ] #?# #?? #?? | | +######### #?# #?? #?? | | ?????????# """ """ #?# #?#########?? | | ?????????# """ """ #?# # #?? | | ?????????# """ """ #?# # #?? | | ?????????# #?# + #?? | | ?????????# ### # #?? | | ?????????# + # """ """ #?? | | ?????????####################?""" """ ??? | | ??????????????????????????????""" """???? | | ??????????????????????????????? ????? | | ???????????????????????????????###??????? | | ????????????????????????????????????????? | | ????????????????????????????????????????? | | ????????????????????????????????????????? | | ????????????????????????????????????????? | | ????????????????????????????????????????? | | ????????????????????????????????????????? | | ????????????????????????????????????????? | | ????????????????????????????????????????? | | ????????????????????????????????????????? | +----------------------------------------------------+ Best States ------------- Heat Dissipation 48 Energy Generation 15 Energy Capacity 150 Matter Stores 300 Matter Capacity 300 Sight Range 16 Terrain Scan Density 10 Additional Mass Support 6 Armor Coverage 225 Evasion (%) 56 Recoil Reduction 1 Particle Charging 15 Offensive Hacking 10 Defensive Hacking 11 Item Schematics ----------------- None Robot Schematics ------------------ None Fabricated ------------ Nothing Alien Tech Used ----------------- None Achievements -------------- None Challenges ------------ None Game ------ Seed MasterPlasmaBeam Manual? 0 Play Time 00:46:07 Cumulative 206.8 hours Start 2021.07.06 @ 12:44:06 End 2021.07.06 @ 13:29:22 Sessions 1 Manual Loads 0 Difficulty Rogue Special Mode None Game No. 123 Rogue 123 Adventurer 0 Explorer 0 Win Type - Total 3 Types 2/0/0/1/0/0/0/0/0 Lore% 60 Gallery% 72 Achievement% 47 Wizard Run 0 Options --------- ASCII 0 Keyboard 0 Movement Numpad Keybinds 0 Fullscreen 1 Font 18/SmallcapsGlow Map View 76x50 Tactical HUD 1 Map Filters NONE Filters NONE Steam 1 RUN: 0fc569fc-edd1-4f80-8186-2e191827c1c7